Workbook

Sheet ComEd NTGR PY1-PY7
B1: ComEd NTGRs PY1-PY7 | H1: PY5 Research | M1: EPY7 EM&V Recommendations
A2: Sector | B2: Program | C2: PY1 | D2: PY2 | E2: PY3 | F2: PY4 | G2: PY5 SAG Consensus | H2: Free ridership | I2: Spillover | J2: NTG | K2: PY5 Report Status | L2: PY6 SAG Consensus | M2: Free Ridership | N2: Participant Spillover | O2: Nonparticipant Spillover | P2: PY7 EM&V NTGR Recommended Value | Q2: PY7 FR Source | R2: PY7 SO Source | S2: PY7 Notes | T2: Priority | U2: Reason
A3: C&I | B3: Business Standard | C3: 0.67 | D3: 0.74 | E3: 0.72 | F3: 0.7 | S3: No program-level PY5 estimates
A4: C&I | B4: Business Standard - Lighting | E4: 0.74 | F4: 0.7 | G4: 0.74 | H4: 0.26 | I4: 0.05 | J4: 0.79 | K4: draft | L4: 0.7 | M4: =H4 -> 0.26 | N4: 0.07 | P4: =1-M4+N4+O4 -> 0.81 | Q4: self-report participant survey | R4: Participant and TA researched - TA used
A5: C&I | B5: Business Standard - Non-Lighting | E5: 0.62 | F5: 0.63 | G5: 0.62 | H5: 0.31 | I5: 0.06 | J5: 0.75 | L5: 0.63 | M5: =H5 -> 0.31 | N5: 0.08 | P5: =1-M5+N5+O5 -> 0.77 | Q5: self-report participant survey | R5: Participant and TA researched - TA used
A6: C&I | B6: Business Custom | C6: 0.72 | D6: 0.76 | E6: 0.56 | F6: 0.61 | G6: 0.56 | H6: =1-J6 -> 0.36 | I6: 0 | J6: 0.64 | K6: draft | L6: 0.61 | M6: =H6 -> 0.36 | N6: =I6 -> 0 | O6: 0 | P6: =1-M6+N6+O6 -> 0.64 | Q6: PY5 self-report participant survey | R6: PY5 self-report participant survey | S6: Participants spillover researched and small, but not negligble
A7: C&I | B7: Data Centers | C7: NA | D7: NA | E7: NA | F7: 0.43 | G7: 0.56 | H7: =1-J7 -> 0.52 | I7: 0 | J7: 0.48 | K7: draft | M7: 0.52 | N7: 0 | O7: 0 | P7: 0.48 | Q7: PY5 self-report participant survey | R7: PY5 self-report participant survey | S7: Participants spillover researched and small, but not negligble | T7: Discuss | U7: ComEd comment
A8: C&I | B8: Industrial Systems (FKA Compressed Air) | C8: NA | D8: NA | E8: NA | F8: 0.67 | G8: 0.67 | H8: 0.33 | I8: 0.01 | J8: 0.68 | L8: 0.67 | M8: =H8 -> 0.33 | N8: =I8 -> 0.01 | O8: 0 | P8: =1-M8+N8+O8 -> 0.68 | Q8: PY5 self-report participant survey | R8: PY5 self-report participant survey
A9: C&I | B9: Business Retrocommissioning | C9: 0.8 | D9: 0.92 | E9: 0.71 | F9: 1.038 | G9: 0.71 | H9: No research | I9: No research | J9: No research | K9: draft | L9: 1.04 | M9: 0.1 | N9: 0.136 | O9: 0 | P9: =1-M9+N9+O9 -> 1.036 | Q9: EPY4 research | R9: EPY4 research | S9: No new research in PY5. Spillover is a mixture of participant and nonparticipant (from trade allies).
A10: C&I | B10: Business New Construction - Program | C10: NA | D10: 0.59 | E10: 0.65 | F10: 0.57 | G10: 0.65 | H10: No research | I10: No research | J10: No research | K10: draft | L10: 0.52 | M10: =1-0.54 -> 0.46 | N10: 0.05 | P10: 0.54+0.05=0.59 | Q10: PY4 participant surveys | R10: EM&V Estimate | S10: PY7 recommendation is the NTG for comprehensive projects; program expects to have mostly comprehensive projects in PY7 | T10: Discuss | U10: ComEd comment
A11: C&I | B11: Business New Construction - Comprehensive Projects | C11: NA | D11: NA | E11: NA | F11: 0.54 | G11: NA | H11: No research | I11: No research | J11: No research | M11: =1-0.54 -> 0.46 | P11: 0.54+0.05=0.59 | T11: Discuss | U11: ComEd comment
A12: C&I | B12: Business New Construction - Systems Projects | C12: NA | D12: NA | E12: NA | F12: 0.59 | G12: NA | H12: No research | I12: No research | J12: No research | M12: =1-0.59 -> 0.41 | P12: 0.59+0.05=0.64 | T12: Discuss | U12: ComEd comment
A13: C&I | B13: BILD - Mid Stream Incentives | C13: NA | D13: NA | E13: 0.74 | F13: 0.63 | G13: 0.74 | H13: 0.42 | I13: 0.05 | J13: 0.63 | K13: draft | L13: 0.63 | S13: EPY5 CFL NTG=0.66. 2-year average = 0.64 and recommended in PY5 final report.
A14: C&I | B14: BILD - CFLs | H14: 0.41 | I14: 0.07 | J14: 0.66 | M14: =H14 -> 0.41 | N14: =I14 -> 0.07 | O14: 0 | P14: 0.64 | Q14: Participant surveys | R14: Participant surveys
A15: C&I | B15: BILD - LEDs | H15: 0.38 | I15: 0.08 | J15: 0.7 | M15: =H15 -> 0.38 | N15: 0.08 | O15: 0 | P15: =1-M15+N15+O15 -> 0.7 | Q15: Participant surveys | R15: Participant surveys
A16: C&I | B16: BILD - Linear Flourescents | H16: 0.47 | I16: 0.03 | J16: 0.56 | M16: 0.47 | N16: 0.03 | O16: 0 | P16: =1-M16+N16+O16 -> 0.56 | Q16: Participant surveys | R16: Participant surveys
A17: C&I | B17: BILD - other | H17: 0.4 | I17: 0.07 | J17: 0.67 | M17: 0.4 | N17: 0.07 | O17: 0 | P17: =1-M17+N17+O17 -> 0.67 | Q17: Participant surveys | R17: Participant surveys
A18: C&I | B18: Small Business | C18: NA | D18: NA | E18: NA | F18: 0.95 | G18: 0.9 | H18: No research | I18: No research | J18: No research | K18: draft | L18: 0.95 | M18: 0.05 | N18: 0 | O18: 0 | P18: =1-M18+N18+O18 -> 0.95 | Q18: EPY4 Participant and trade ally surveys | R18: EPY4 Participant and trade ally surveys | S18: PY4 SO rounded to 0 (negligible)
A19: Residential | B19: Residential Lighting Program | C19: 0.68 | D19: 0.58 | E19: 0.71 | F19: 0.54 | H19: 0.48 | I19: 0.02 | J19: 0.54 | K19: draft | T19: Discuss | U19: ICC Comment
A20: Residential | B20: Residential Lighting Program -Standard CFL | F20: 0.55 | G20: 0.72 | H20: 0.47 | I20: 0.02 | J20: 0.55 | L20: 0.54 | N20: 0.01 | O20: 0.003 | P20: 0.6 | Q20: PY5 in-store intercept surveys | S20: Standard and specialty CFL recommendation = 3-year weighted average. Total spillover = 0.02 | T20: Discuss | U20: ICC Comment
A21: Residential | B21: Residential Lighting Program - Specialty CFL | F21: 0.44 | G21: 0.8 | H21: 0.53 | I21: 0.02 | J21: 0.48 | L21: 0.8 | N21: 0.01 | O21: 0.003 | P21: 0.55 | Q21: PY5 in-store intercept surveys | T21: Discuss | U21: ICC Comment
A22: Residential | B22: Residential Lighting Program - CFL Fixtures | F22: 0.54 | G22: 0.79 | H22: 0.48 | I22: 0.02 | J22: 0.54 | L22: 0.54 | P22: 0.75 | Q22: New bulb type to the program. EM&V Estimate | T22: Discuss | U22: ICC Comment
A23: Residential | B23: Residential Lighting Program - LED Bulbs | F23: 0.54 | G23: NA | H23: 0.53 | I23: 0.02 | J23: 0.48 | P23: 0.75 | Q23: New bulb type to the program. EM&V Estimate | T23: Discuss | U23: ICC Comment
A24: Residential | B24: Residential Lighting Program - LED Fixtures | F24: 0.54 | G24: NA | H24: 0.48 | I24: 0.02 | J24: 0.54 | P24: 0.75 | Q24: New bulb type to the program. EM&V Estimate | T24: Discuss | U24: ICC Comment
A25: Residential | B25: Residential Lighting Program - Coupon | F25: 0.55 | G25: NA | H25: 0.47 | I25: 0.02 | J25: 0.55 | P25: As above | T25: Discuss | U25: ICC Comment
A26: Residential | B26: Fridge Freezer Recycling Rebate (Appliance Recycling) | C26: 0.73 | D26: 0.75 | E26: 0.68 | F26: NA | K26: draft | S26: Based upon secondary research and field knowledge, the indication is SO is negligible. Deeming NTG at the retailer/non-retailer level gives the program the opportunity to improve final net savings by adjusting program operations. | T26: Discuss | U26: ComEd comment
A27: Residential | B27: Fridge Freezer Recycling Rebate - Refrigerators | F27: 0.77 | G27: 0.67 | H27: 0.44 | I27: 0 | J27: 0.56 | L27: 0.73 | Q27: PY5 participant and retailer surveys | R27: None | T27: Discuss | U27: ComEd comment
A28: Residential | B28: Fridge Freezer Recycling Rebate - Freezers | F28: 0.77 | G28: 0.75 | H28: 0.48 | I28: 0 | J28: 0.52 | L28: 0.82 | Q28: PY5 participant and retailer surveys | R28: None | T28: Discuss | U28: ComEd comment
A29: Residential | B29: Fridge Freezer Recycling Rebate - Room AC units | F29: 0.58 | G29: 0.7 | H29: 0.5 | I29: 0 | J29: 0.5 | L29: 0.72 | Q29: PY5 participant and retailer surveys | R29: None | T29: Discuss | U29: ComEd comment
A30: Residential | B30: Fridge Freezer Recycling Rebate - Refrigerator - Retailers | H30: =1-J30 -> 0.83 | I30: 0 | J30: 0.17 | M30: =H30 -> 0.83 | N30: 0 | O30: 0 | P30: =1-M30+N30+O30 -> 0.17 | Q30: PY5 participant and retailer surveys | R30: None | T30: Discuss | U30: ComEd comment
A31: Residential | B31: Fridge Freezer Recycling Rebate - Refrigerator - Non-Retailers | H31: =1-J31 -> 0.21 | I31: 0 | J31: 0.79 | M31: =H31 -> 0.21 | N31: 0 | O31: 0 | P31: 0.79 | Q31: PY5 participant and retailer surveys | R31: None | T31: Discuss | U31: ComEd comment
A32: Residential | B32: Fridge Freezer Recycling Rebate - Freezer - Retailers | H32: 0.79 | I32: 0 | J32: 0.21 | M32: 0.79 | N32: 0 | O32: 0 | P32: 0.21 | Q32: PY5 participant and retailer surveys | R32: None | T32: Discuss | U32: ComEd comment
A33: Residential | B33: Fridge Freezer Recycling Rebate - Freezer - Non-Retailers | H33: 0.41 | I33: 0 | J33: 0.59 | M33: 0.41 | N33: 0 | O33: 0 | P33: 0.59 | Q33: PY5 participant and retailer surveys | R33: None | T33: Discuss | U33: ComEd comment
A34: Residential | B34: Fridge Freezer Recycling Rebate - Room AC - Non-Retailers | H34: 0.5 | I34: 0 | J34: 0.5 | M34: 0.5 | N34: 0 | O34: 0 | P34: 0.5 | Q34: PY5 participant and retailer surveys | R34: None | T34: Discuss | U34: ComEd comment
A35: Residential | B35: Multi-Family All Electric | C35: 0.8 | D35: 0.8 | E35: 0.9 | F35: 0.98 | G35: 0.81 | H35: No research | I35: No research | J35: No research | K35: draft | Q35: EPY4 participant survey | R35: PY4 building manager survey | S35: PY4 research; all CFL measures
A36: Residential | B36: Multi-Family with Gas | C36: NA | D36: NA | F36: 0.94 | G36: 0.93 | H36: No research | I36: No research | J36: No research | K36: draft | Q36: EPY4 participant survey | R36: PY4 building manager survey | S36: PY4 research; all water efficiency measures
A37: Residential | B37: Multi-Family - CFLs | F37: 0.98 | G37: 0.81 | H37: No research | I37: No research | J37: No research | L37: 0.98 | M37: =1-P37 -> 0.02 | N37: 0 | O37: 0 | P37: 0.98 | Q37: EPY4 participant survey | R37: None | T37: Discuss | U37: Phil Mosenthal comment
A38: Residential | B38: Multi-Family - Showerhead | F38: 0.92 | G38: 0.93 | H38: No research | I38: No research | J38: No research | L38: 0.92 | M38: =1-P38 -> 0.08 | N38: 0 | O38: 0 | P38: 0.92 | Q38: EPY4 participant survey | R38: None
A39: Residential | B39: Multi-Family - Bath Aerator | F39: 0.94 | G39: 0.93 | H39: No research | I39: No research | J39: No research | M39: 0.06 | N39: 0 | O39: 0 | P39: 0.94 | Q39: EPY4 participant survey | R39: None
A40: Residential | B40: Multi-Family - Kitchen Aerator | F40: 1 | G40: 0.93 | H40: No research | I40: No research | J40: No research | M40: 0 | N40: 0 | O40: 0 | P40: 1 | Q40: EPY4 participant survey | R40: None
A41: Residential | B41: Multi-Family - Other Measures, Direct Installed in Units | H41: No research | I41: No research | J41: No research | N41: 0 | O41: 0 | P41: 0.95 | Q41: EM&V Estimate | R41: None | S41: Not enough responses to calculate measure-level NTG. (Programmable thermostats, pipe wrap, which are direct install.) | T41: Discuss
A42: Residential | B42: Multi-Family - Other Measures, Direct Installed in Common Areas | H42: No research | I42: No research | J42: No research | N42: 0 | O42: 0 | P42: 0.95 | Q42: EM&V Estimate | R42: None | S42: Not enough responses to calculate measure-level NTG. (Programmable thermostats, pipe wrap, which are direct install.) | T42: Discuss
A43: Residential | B43: Multi-Family Comprehensive projects | C43: Not offered until PY6 | H43: No research | I43: No research | J43: No research | K43: draft | L43: 0.8 | N43: In the NTG | O43: In the NTG | P43: 0.95 | Q43: EM&V Estimate | R43: EM&V Estimate | S43: New program NTGR element in EPY6 | T43: Discuss | U43: ComEd comment
A44: Residential | B44: Single Family with Gas - Direct Install Measures | C44: NA | D44: NA | E44: 0.79 | G44: 0.94 | H44: 0.23 | I44: 0.03 | J44: 0.8 | K44: draft | M44: 0.23 | N44: 0.03 | P44: 0.8 | Q44: EPY4 and EPY5 participants surveys | S44: For Weatherization free ridership, Navigant assigned a 75% weighting to TA FR survey results and 25% to participants.
A45: Residential | B45: Single Family All Electric | C45: NA | D45: 0.88 | E45: 0.92 | F45: NA | G45: 0.89 | H45: 0.2 | I45: 0.09 | J45: 0.89 | K45: draft
A46: Residential | B46: Single Family with Gas - Lighting | F46: 0.79 | G46: 0.89 | H46: 0.24 | I46: 0.04 | J46: 0.8 | L46: 0.79 | P46: Use DI #
A47: Residential | B47: Single Family with Gas _ Showerhead | F47: 0.75 | G47: 0.94 | H47: 0.07 | I47: 0.02 | J47: 0.95 | L47: 0.75 | P47: Use DI #
A48: Residential | B48: Single Family with Gas_ Kitchen Aerator | F48: NA | G48: 0.94 | H48: 0.01 | I48: 0.07 | J48: 1.06 | P48: Use DI #
A49: Residential | B49: Single Family with Gas _ Bath Aerator | F49: NA | G49: 0.94 | H49: 0.01 | I49: 0 | J49: 0.99 | P49: Use DI #
A50: Residential | B50: Single Family with Gas _ Water Heater Temp Setback | F50: NA | G50: 0.94 | H50: 0.12 | I50: 0 | J50: 0.88 | P50: Use DI #
A51: Residential | B51: Single Family with Gas _ Pipe Insulation | F51: NA | G51: 0.94 | H51: 0.12 | I51: 0 | J51: 0.88 | P51: Use DI #
A52: Residential | B52: Single Family with Gas _ Programmable Thermostat | F52: NA | G52: NA | H52: NA | I52: NA | J52: NA | P52: Use DI #
A53: Residential | B53: Single Family with Gas _ Programmable Thermostat Education | F53: NA | G53: NA | H53: NA | I53: NA | J53: NA | P53: Use DI #
A54: Residential | B54: Single Family with Gas - Weatherization Measures | F54: 0.8 | G54: 0.8 | H54: 0.1 | I54: 0.11 | J54: 1.02 | K54: draft | L54: 0.8 | M54: 0.1 | N54: 0.11 | P54: 1.02 | Q54: EPY4 and EPY5 participants surveys, EPY5 Trade ally surveys
A55: Residential | B55: Single Family with Gas - Attic Insulation | F55: NA | G55: 0.8 | H55: 0.21 | I55: 0 | J55: 0.79 | P55: Use Weatherization #
A56: Residential | B56: Single Family with Gas - Wall Insulation | F56: NA | G56: 0.8 | H56: 0.22 | I56: 0 | J56: 0.78 | P56: Use Weatherization #
A57: Residential | B57: Single Family with Gas - Floor Insulation (other) | F57: NA | G57: 0.8 | H57: 0.16 | I57: 0 | J57: 0.84 | P57: Use Weatherization #
A58: Residential | B58: Single Family with Gas - Duct Sealing | F58: NA | G58: 0.8 | H58: NA | I58: NA | J58: NA | P58: Use Weatherization #
A59: Residential | B59: Single Family with Gas - Air Sealing | F59: NA | G59: 0.8 | H59: 0.14 | I59: 0 | J59: 0.86 | P59: Use Weatherization #
A60: Residential | B60: Complete System Replacement with Gas _ Participant | C60: NA | D60: NA | E60: NA | F60: 0.59 | G60: R | H60: No research | I60: No research | J60: No research | K60: Draft | M60: 0.41 | P60: 0.99 | S60: PY5 NTG = (0.41 (PY4 participant survey) + 0.25 (EPY5 trade allies))/2 + 0.12 (participating trade ally spillover) + 0.20 (non-participating trade ally spillover) | T60: Discuss | U60: Phil Mosenthal comment
A61: Residential | B61: Complete System Replacement with Gas _ Trade Ally | C61: NA | D61: NA | E61: NA | F61: NA | G61: R | H61: 0.25 | I61: 0 + 0.12 + 0.20 | J61: 0.99 | L61: 0.59 | M61: 0.25 | N61: 0.12 | O61: 0.2 | P61: =1-AVERAGE(M61,M60)+N61+O61 -> 0.99 | Q61: EPY4 participant survey; EPY5 participating trade ally survey | R61: EPY5 participating trade ally survey; EPY5 Nonparticipant trade ally survey | T61: Discuss | U61: Phil Mosenthal comment
A62: Residential | B62: Residential New Construction | C62: NA | D62: NA | E62: NA | F62: NA | G62: R | H62: No research | I62: No research | J62: No research | K62: draft | L62: 0.8 | P62: 0.8 | Q62: Planning value | R62: None | S62: No evaluation research has been done; 0.8 is NTG planning value
A63: Residential | B63: Elementary Energy Education | C63: NA | D63: NA | E63: NA | F63: 0.76 | G63: 0.76 | H63: No research | I63: No research | J63: No research | K63: final | L63: 0.76 | M63: varies | N63: varies | O63: 0 | P63: 0.76 | Q63: PY4 participant surveys | R63: PY4 participant surveys | S63: PY4 total NTG was weighted based upon all measures (e.g., aerators, CFLs, etc.)
